Cogmind - Beta 15 @@@ ROGUE MODE // 2025.07.20 @ 19:47:37 Player: saltine Result: Destroyed by P1-3CE with P1-3CE's Gatling Flakker Performance ------------- Evolutions (1) 500 Regions Visited (6) 1200 Robots Destroyed (90) 450 Value Destroyed (1743) 1743 Prototype IDs (36) 720 Alien Tech Used (0) 0 Bonus (379) 379 TOTAL SCORE: 4992 Bonus ------- Follower Combat Kills 93 Aligned with FarCom 300 Friendly Fire -14 Cogmind --------- Core Integrity 0/400 Matter 207/300 Energy 197/200 System Corruption 0% Temperature Cool (0) Movement Treading (240) Ox1 Location -8/Mines Parts ------- > --- POWER (1) -------- Cold Fusion Reactor > --- PROPULSION (2) --- Light Treads Light Treads > --- UTILITY (2) ------ High-capacity Storage Unit Light Armor Plating > --- WEAPON (4) ------- Makeshift Laser 8R-AWN's Boregun Flak Cannon > --- INVENTORY (20) --- Light Neutrino Core Reinforced Fission Core Light Treads Light Treads Light Treads Light Treads Advanced Myomer Leg Disposable Heat Sink High-capacity Matter Pod (200) High-capacity Matter Pod (101) Experimental Core Analyzer Advanced Transmission Jammer Light Armor Plating Advanced Component Analysis Suite Missile Launcher Missile Launcher Plasma Cutter Peak State ------------ > --- POWER ------------ Cold Fusion Reactor > --- PROPULSION ------- Improved Treads Advanced Myomer Leg > --- UTILITY ---------- High-capacity Storage Unit Light Armor Plating > --- WEAPON ----------- Makeshift Laser 8R-AWN's Boregun Flak Cannon Flak Cannon > --- INVENTORY -------- Light Neutrino Core Reinforced Fission Core Light Treads Light Treads Light Treads Light Treads Light Treads Light Treads Improved Treads Disposable Heat Sink High-capacity Matter Pod High-capacity Matter Pod Experimental Core Analyzer Advanced Transmission Jammer Light Armor Plating Light Armor Plating Advanced Component Analysis Suite Missile Launcher Missile Launcher Plasma Cutter [Rating: 44] Favorites ----------- Power Cooled Ion Engine Engine Cooled Ion Engine Power Core Light Neutrino Core Reactor Cold Fusion Reactor Propulsion Improved Treads Treads Improved Treads Leg Advanced Myomer Leg Utility High-capacity Storage Unit Device Improved Heat Sink Storage High-capacity Storage Unit Protection Light Armor Plating Weapon Flak Cannon Energy Gun Makeshift Laser Energy Cannon Subdweller Beam Cannon Ballistic Gun Assault Rifle Ballistic Cannon Flak Cannon Launcher Missile Launcher Slashing Weapon Longsword +1 Build | -11 -10 -10 -9 -9 -9 -8 ------- Run | Yrd Mat Min Mat Min Exi Min Slots Evolved 2 | . . . 2 . . . Power . | . . . . . . . Propulsion . | . . . . . . . Utility . | . . . . . . . Weapon 2 | . . . 2 . . . Parts Attached 45 | 7 8 2 12 1 15 . Power 6 | 1 1 . 2 . 2 . Engine 4 | 1 1 . 2 . . . Core 1 | . . . . . 1 . Reactor 1 | . . . . . 1 . Propulsion 10 | 2 1 . 5 . 2 . Treads 9 | 2 1 . 5 . 1 . Leg 1 | . . . . . 1 . Wheel . | . . . . . . . Hover . | . . . . . . . Flight . | . . . . . . . Utility 14 | 2 4 1 . 1 6 . Device 5 | 1 1 . . . 3 . Storage 3 | 1 1 . . . 1 . Processor . | . . . . . . . Hackware . | . . . . . . . Protection 6 | . 2 1 . 1 2 . Artifact . | . . . . . . . Weapon 15 | 2 2 1 5 . 5 . Energy Gun 3 | . 1 . 1 . 1 . Energy Cannon 1 | . 1 . . . . . Ballistic Gun 3 | 2 . . . . 1 . Ballistic Cannon 5 | . . 1 4 . . . Launcher 2 | . . . . . 2 . Special Weapon . | . . . . . . . Impact Weapon . | . . . . . . . Slashing Weapon 1 | . . . . . 1 . Piercing Weapon . | . . . . . . . Special Melee Weapon . | . . . . . . . Unidentified Prototypes 7 | . 1 . . . 6 . Parts Lost 13 | . 2 1 . 1 5 4 Power . | . . . . . . . Propulsion 4 | . 1 . . . 1 2 Utility 4 | . 1 . . 1 1 1 Weapon 5 | . . 1 . . 3 1 Highest Loss Streak 4 | . 2 1 . 1 4 4 To Critical Strikes 3 | . . . . . 3 . Average Backups 18 | 2 15 19 19 19 19 20 Power 1 | . 1 2 2 2 2 2 Propulsion 4 | 1 2 2 4 6 5 7 Utility 7 | . 7 10 9 7 6 8 Weapon 3 | . 4 5 3 3 3 2 Tool/Special . | . . . . . . . Unused Backups 39 | . 6 . 12 2 8 11 Power 8 | . 1 . 1 . 5 1 Propulsion 8 | . 1 . 3 . 1 3 Utility 16 | . 3 . 4 2 1 6 Weapon 6 | . 1 . 4 . 1 . Tool/Special 1 | . . . . . . 1 Average Slot Usage (%) 97 | . 99 100 99 100 93 92 Engine 10 | . 14 14 11 11 5 . Reactor 1 | . . . . . 5 11 Treads 23 | . 27 28 21 22 22 18 Device 4 | . 7 8 8 4 . . Storage 11 | . 14 14 11 11 11 11 Protection 6 | . 6 5 2 6 10 11 Energy Gun 1 | . . . . . 4 11 Ballistic Gun 7 | . 27 14 . . 3 7 Ballistic Cannon 26 | . . 13 43 44 23 18 Launcher 1 | . . . . . 2 3 Slashing Weapon 1 | . . . . . 3 . Peak Build Rating 44 | 7 11 11 26 26 44 38 Average Rating 22 | 5 8 10 24 25 29 34 On Entrance 16 | . 7 11 11 26 25 32 Naked Turns . | . . . . . . . Heaviest Build 76 | 15 56 55 75 75 76 75 Greatest Support 46 | 40 40 40 46 46 46 46 Greatest Overweight (x) 1 | . 1 1 1 1 1 1 Average Overweight (x) . | . . 1 1 1 1 1 Largest Inventory Capacity 20 | 8 20 20 20 20 20 20 Average Capacity 19 | 7 19 20 20 20 20 20 Most Carried 20 | 4 20 20 20 20 20 20 Average Carried 18 | 3 15 19 19 19 19 19 Final Capacity 20 | 8 20 20 20 20 20 20 Final Carried 20 | 4 20 20 20 20 20 17 Class Distribution -------------------- 39% | Tank 36% | Mutant 23% | Gunner Dominant Class ---------------- Mutant | -10/Materials Mutant | -10/Mines Gunner | -9/Materials Tank | -9/Mines Tank | -9/Exiles Tank | -8/Mines Resources | -11 -10 -10 -9 -9 -9 -8 ----------- Run | Yrd Mat Min Mat Min Exi Min Matter Collected 3379 | 309 395 116 1316 437 806 . Remotely . | . . . . . . . Salvage Created 2632 | 99 484 46 944 498 561 . Parts 222 | 4 37 4 66 26 85 . Haulers Intercepted 8 | . 2 . 6 . . . Recyclers Shooed 2 | . 1 . 1 . . . Parts Field Recycled . | . . . . . . . Retrieved Matter . | . . . . . . . Parts Self-Destructed . | . . . . . . . Prevented . | . . . . . . . Kills | -11 -10 -10 -9 -9 -9 -8 ------- Run | Yrd Mat Min Mat Min Exi Min Combat Hostiles Destroyed 63 | . 15 4 25 16 3 . Melee 1 | . . . . . 1 . Guns 19 | . 15 4 . . . . Cannons 42 | . . . 25 16 1 . AOE 1 | . . . . . 1 . Classes Destroyed 14 | 2 4 . 4 2 2 . Worker 6 | . . . 4 2 . . Builder 1 | . . . 1 . . . Tunneler 1 | 1 . . . . . . Hauler 8 | . 2 . 6 . . . Recycler 2 | 1 . . . 1 . . Operator 2 | . . . 2 . . . Turret 1 | . . . . . 1 . Swarmer 22 | . 9 3 5 5 . . Grunt 25 | . 3 . 14 8 . . Brawler 1 | . . . . 1 . . Sentry 6 | . . . 6 . . . Subdweller 3 | . 3 . . . . . Zionite 8 | . . . . . 8 . Assembled 5 | . . . . 3 2 . Best Kill Streak 10 | 2 3 3 10 5 5 . Combat Bots Only 5 | . 3 3 5 5 2 . Max Kills in Single Turn 2 | 1 2 1 2 2 1 . Gunslinging 1 | . 1 . . . . . Exploded 1 | . . . . . 1 . Melee 1 | . . . . . 1 . Uniques/NPCs Destroyed 5 | . . 1 . . 4 . YI-UF0 (-10/Mines) 8R-AWN (-9/Exiles) EX-HEX (-9/Exiles) EX-BIN (-9/Exiles) EX-DEC (-9/Exiles) Combat | -11 -10 -10 -9 -9 -9 -8 -------- Run | Yrd Mat Min Mat Min Exi Min Hostile Shots Fired 281 | . 78 25 59 29 42 48 Missed 57 | . 12 4 18 5 8 10 Hits 224 | . 66 21 41 24 34 38 Melee 2 | . . . . 2 . . Projectile 222 | . 66 21 41 22 34 38 AOE 7 | . . 7 . . . . Critical Strikes 17 | . 1 . . 1 15 . Damage Taken 3407 | . 804 356 472 290 637 848 Core 562 | . 90 57 41 43 105 226 Absorbed by Shields 56 | . . . . . 56 . Regen/Repaired (Parts) 435 | . 197 . 238 . . . Core Remaining (%) 70 | 100 . 41 . . . . Volleys Fired 205 | 9 47 10 44 18 71 6 Largest 4 | 2 2 2 4 4 3 1 Hottest 148 | 40 80 50 148 148 111 30 Shots Fired 454 | 18 92 20 173 72 73 6 Gun 181 | 18 90 14 1 . 52 6 Cannon 255 | . 2 6 172 72 3 . Launcher 18 | . . . . . 18 . Special . | . . . . . . . Kinetic 429 | 18 90 20 172 72 51 6 Thermal 2 | . 2 . . . . . Explosive 18 | . . . . . 18 . Electromagnetic 5 | . . . 1 . 4 . Robot Hit Streak 12 | 4 12 3 7 6 12 3 Robot Miss Streak 21 | 2 4 3 17 21 5 1 Penetration Max 2 | . . . . . 2 . Secondary Targets 5 | . 3 2 . . . . Max Gunslinging Chain 1 | . 1 1 . . . . Shots Hit Robots 295 | 11 62 10 109 47 52 4 Core Hits 236 | 3 30 6 105 53 38 1 Critical Kills 2 | . . . . . 2 . Critical Parts Destroyed 10 | . 2 . . . 7 1 Critical Strikes 16 | . 3 . . . 11 2 Destroy 15 | . 3 . . . 10 2 Sever 1 | . . . . . 1 . Melee Attacks 22 | . . . . . 22 . Impact . | . . . . . . . Slashing 22 | . . . . . 22 . Piercing . | . . . . . . . Sneak Attacks . | . . . . . . . Combat Hostiles . | . . . . . . . Follow-up Attacks . | . . . . . . . Damage Inflicted 5844 | 139 817 141 1697 858 2138 54 Guns 1643 | 138 770 105 . . 579 51 Cannons 2474 | . . 35 1618 815 6 . Explosions 407 | . . . . . 407 . Melee 1146 | . . . . . 1146 . Ramming 174 | 1 47 1 79 43 . 3 Kinetic 4117 | 138 770 140 1618 815 585 51 Thermal . | . . . . . . . Explosive 407 | . . . . . 407 . Electromagnetic . | . . . . . . . Impact . | . . . . . . . Slashing 1146 | . . . . . 1146 . Piercing . | . . . . . . . Highest Corruption . | . . . . . . . Average Corruption . | . . . . . . . Corruption Purged . | . . . . . . . Corruption Blocked . | . . . . . . . Overload Shots . | . . . . . . . Overflow Damage 50 | . . . 1 3 46 . Projectiles 3 | . . . . 3 . . Explosions . | . . . . . . . Melee 47 | . . . 1 . 46 . Knockbacks 47 | . 1 1 23 22 . . Impact 3 | . 1 . 1 1 . . Kinetic 41 | . . 1 20 20 . . Secondary 3 | . . . 2 1 . . Self-Inflicted Damage 31 | . . . . . 31 . Shots 2 | . . . . . 2 . Rammed 29 | 2 10 2 10 4 . 1 Targets Rammed 30 | 2 10 2 11 4 . 1 Kicked . | . . . . . . . Crushed 1 | . . . 1 . . . Highest Temperature 357 | . 80 . 357 302 65 . Average Temperature 67 | . 20 . 75 72 42 . Received Heat Transfer 488 | . 225 . 171 72 20 . Effects 1 | . . . 1 . . . Energy Bleed 1 | . . . 1 . . . Siege Activations . | . . . . . . . Martial Activations . | . . . . . . . Shielding Activations . | . . . . . . . Robots Disrupted . | . . . . . . . Combat Hostiles . | . . . . . . . Robots Corrupted 1 | . . . 1 . . . Combat Hostiles . | . . . . . . . Parts Fried 1 | . . . 1 . . . Impact Corruptions 1 | . . . 1 . . . Robots Melted . | . . . . . . . Combat Hostiles . | . . . . . . . Parts Melted . | . . . . . . . Heat Transferred . | . . . . . . . Parts Sabotaged . | . . . . . . . Parts Stolen . | . . . . . . . Parts Stripped . | . . . . . . . Power Chain Reactions . | . . . . . . . Alert | -11 -10 -10 -9 -9 -9 -8 ------- Run | Yrd Mat Min Mat Min Exi Min Maximum Alert Level 1 | . . . . 1 . . Low Security (%) 99 | 100 100 100 100 98 . 100 Level 1 . | . . . . 1 . . Level 2 . | . . . . . . . Level 3 . | . . . . . . . Level 4 . | . . . . . . . Level 5 . | . . . . . . . High Security . | . . . . . . . Max Security . | . . . . . . . Peak Influence 209 | 10 153 78 188 209 . 1 Initial 64 | . . 18 . 64 . . Average 55 | . 32 5 76 80 . . Influence Increases 1838 | 10 471 70 746 539 . 2 Destroy 0b10 Robot/C 1200 | . 240 60 500 400 . . Destroy 0b10 Robot/NC 110 | 10 10 . 65 25 . . Destroy Leader 276 | . 44 10 152 70 . . Allied During Kill 39 | . . . . 39 . . Successful Hack 46 | . 27 . 14 5 . . Select Force Hacks 30 | . 30 . . . . . Disable Machine 60 | . 60 . . . . . Destroy Structure 2 | . . . . . . 2 Partial Spotted 15 | . 15 . . . . . Lose Combat Pursuer 60 | . 45 . 15 . . . Influence Decreases 1838 | 10 423 118 581 704 . 2 Entered New Map 131 | . . 30 . 101 . . Time Decay 1514 | 10 403 78 470 553 . . Lost Part 42 | . 20 10 . 10 . 2 Lost Ally 40 | . . . . 40 . . Purge Threat 111 | . . . 111 . . . Squads Dispatched 8 | . 3 . 5 . . . Investigation 2 | . 2 . . . . . Extermination . | . . . . . . . Reinforcement 6 | . 1 . 5 . . . Assault . | . . . . . . . Garrison . | . . . . . . . Intercept . | . . . . . . . Searches Triggered . | . . . . . . . Construction Impeded . | . . . . . . . Haulers Reinforced . | . . . . . . . Active Scanning Responses . | . . . . . . . Cargo Convoy Interrupts . | . . . . . . . Stealth | -11 -10 -10 -9 -9 -9 -8 --------- Run | Yrd Mat Min Mat Min Exi Min Distress Signals 9 | . 4 . 5 . . . Communications Jammed . | . . . . . . . Distress Signals . | . . . . . . . Times Spotted 118 | . 39 4 35 24 15 1 Peak Tracking Total 9 | . 5 3 4 5 9 1 Tactical Retreats 9 | . 3 . 1 . 5 . Traps | -11 -10 -10 -9 -9 -9 -8 ------- Run | Yrd Mat Min Mat Min Exi Min Traps Triggered 1 | . 1 . . . . . Indirectly . | . . . . . . . Trap Hack Attempts . | . . . . . . . Triggered . | . . . . . . . Disarmed . | . . . . . . . Reprogrammed . | . . . . . . . Reused . | . . . . . . . Traps Extracted . | . . . . . . . Installed . | . . . . . . . Triggered . | . . . . . . . Machines | -11 -10 -10 -9 -9 -9 -8 ---------- Run | Yrd Mat Min Mat Min Exi Min Machines Disabled 18 | . 4 . . . 14 . Max in Single Turn 3 | . 1 . . . 3 . Machines Repaired . | . . . . . . . Machines Dismantled . | . . . . . . . Machines Sabotaged . | . . . . . . . Overloaded Fab Kills . | . . . . . . . Hacking | -11 -10 -10 -9 -9 -9 -8 --------- Run | Yrd Mat Min Mat Min Exi Min Machines Accessed 24 | . 11 . 10 1 2 . Terminals 15 | . 8 . 6 1 . . Fabricators . | . . . . . . . Repair Stations 3 | . 1 . 2 . . . Recycling Units 4 | . 2 . 2 . . . Scanalyzers . | . . . . . . . Garrison Access . | . . . . . . . Total Hacks 70 | . 35 . 31 2 2 . Successful 38 | . 18 . 16 2 2 . Failed 31 | . 16 . 15 . . . Catastrophic 3 | . 1 . 2 . . . Database Lockouts 1 | . 1 . . . . . Manual 29 | . 13 . 15 . 1 . Terminals 43 | . 22 . 19 2 . . Fabricators . | . . . . . . . Repair Stations 14 | . 7 . 7 . . . Recycling Units 11 | . 6 . 5 . . . Scanalyzers . | . . . . . . . Garrison Access . | . . . . . . . Terminal Hacks 17 | . 9 . 4 2 2 . Record 2 | . . . . 1 1 . Part Schematic 1 | . . . 1 . . . Robot Analysis 1 | . 1 . . . . . Prototype ID Bank 5 | . 4 . 1 . . . Branch Access Points 1 | . . . 1 . . . Unreport Threat 1 | . . . 1 . . . Locate Traps 1 | . 1 . . . . . Transport Status 1 | . 1 . . . . . Hauler Manifests 1 | . 1 . . . . . Registered Components 1 | . 1 . . . . . Zone Layout 1 | . . . . 1 . . Proto ID Catalog 1 | . . . . . 1 . Fabricator Hacks . | . . . . . . . Repair Station Hacks 10 | . 4 . 6 . . . Scan Component 6 | . 2 . 4 . . . Repair 4 | . 2 . 2 . . . Recycling Unit Hacks 4 | . 2 . 2 . . . Retrieve Components 4 | . 2 . 2 . . . Scanalyzer . | . . . . . . . Garrison Access Hacks . | . . . . . . . Unauthorized Hacks 7 | . 3 . 4 . . . Terminals 4 | . 2 . 2 . . . Botnet 2 | . 1 . 1 . . . Operators 2 | . 1 . 1 . . . Fabricators . | . . . . . . . Repair Stations . | . . . . . . . Recycling Units 3 | . 1 . 2 . . . Mask 2 | . . . 2 . . . Tunnel 1 | . 1 . . . . . Scanalyzers . | . . . . . . . Garrison Access . | . . . . . . . Data Cores Recovered . | . . . . . . . Used . | . . . . . . . Hacking Detections 20 | . 10 . 9 1 . . Full Trace Events . | . . . . . . . Feedback Events . | . . . . . . . Feedback Blocked . | . . . . . . . Robot Schematics Acquired . | . . . . . . . Robots Built . | . . . . . . . Authchips . | . . . . . . . Time . | . . . . . . . Total Robot Build Rating . | . . . . . . . Part Schematics Acquired 1 | . . . 1 . . . Parts Built . | . . . . . . . Authchips . | . . . . . . . Time . | . . . . . . . Total Part Build Rating . | . . . . . . . Parts Repaired 4 | . 2 . 2 . . . Time 114 | . 52 . 62 . . . Parts Recycled . | . . . . . . . Recycled Matter . | . . . . . . . Retrieved Matter . | . . . . . . . Retrieved Components 23 | . 10 . 13 . . . Parts Scanalyzed . | . . . . . . . Part Schematics Acquired . | . . . . . . . Parts Damaged . | . . . . . . . Bothacking | -11 -10 -10 -9 -9 -9 -8 ------------ Run | Yrd Mat Min Mat Min Exi Min Used RIF Installer . | . . . . . . . Robots Hacked . | . . . . . . . Non-combat . | . . . . . . . Combat . | . . . . . . . Robot Hacks Applied . | . . . . . . . Relay Couplers Released . | . . . . . . . Fabnet Peak Effective % . | . . . . . . . Robots Rewired . | . . . . . . . Allies Hacked . | . . . . . . . Hacks Repelled . | . . . . . . . Allies | -11 -10 -10 -9 -9 -9 -8 -------- Run | Yrd Mat Min Mat Min Exi Min Total Allies 3 | . . . . 3 . . Largest Group 3 | . . . . 3 . . Highest-Rated Group 40 | . . . . 40 . . Highest-Rated Ally 16 | . . . . 16 . . Total Orders . | . . . . . . . Ally Attacks 33 | . . . . 33 . . Total Damage 292 | . . . . 292 . . Kills 10 | . . . . 10 . . Allies Corrupted . | . . . . . . . Allies Melted . | . . . . . . . Turrets Deployed 4 | . . . . . 4 . Intel | -11 -10 -10 -9 -9 -9 -8 ------- Run | Yrd Mat Min Mat Min Exi Min Active Infowar (turns) 1635 | 19 970 646 . . . . Seismic 1635 | 19 970 646 . . . . Robot Analysis Total 1 | . 1 . . . . . Derelict Logs Recovered 4 | . . 3 . 1 . . Drone Launches . | . . . . . . . Drone Recoveries . | . . . . . . . Exploration | -11 -10 -10 -9 -9 -9 -8 ------------- Run | Yrd Mat Min Mat Min Exi Min Turns Passed 12373 | 124 2137 1087 2960 1785 4256 24 Spaces Moved 4706 | 53 808 437 1079 679 1648 2 Core 4 | 4 . . . . . . Treads 4702 | 49 808 437 1079 679 1648 2 Legs . | . . . . . . . Wheels . | . . . . . . . Hover . | . . . . . . . Flight . | . . . . . . . Fastest Speed 50 | 50 160 240 240 240 240 240 Average Speed 237 | 151 230 240 240 240 240 240 Slowest Speed 240 | 160 240 240 240 240 240 240 Overloaded Moves . | . . . . . . . Propulsion Burnouts . | . . . . . . . Robots Hopped . | . . . . . . . Potential Cave-ins . | . . . . . . . Cave-ins Triggered . | . . . . . . . Exploration Rate (%) 69 | 4 95 96 94 100 90 4 Regions Visited 6 Branch Regions 4 Pre-discovered Areas 4 | . 1 1 . 1 1 . Known Exits Taken 1 | . . . 1 . . . Unknown Exits Taken 5 | 1 1 1 . 1 1 . Scrap Searched 2 | . . 1 . 1 . . Spaces Dug . | . . . . . . . Terrain Destroyed 26 | . . . . . 24 2 Melee . | . . . . . . . Projectile 8 | . . . . . 7 1 AOE 17 | . . . . . 17 . Terrain Rammed . | . . . . . . . Walls Destroyed . | . . . . . . . Machines Disabled . | . . . . . . . Actions | -11 -10 -10 -9 -9 -9 -8 --------- Run | Yrd Mat Min Mat Min Exi Min Total 5491 | 74 975 452 1334 788 1855 13 Wait 352 | . 63 . 149 82 58 . Move 4700 | 52 807 436 1078 678 1647 2 Hop . | . . . . . . . Pick Up 60 | 4 23 1 15 3 14 . Fast Attach 22 | 7 4 . 5 . 6 . Attach 14 | . 2 1 . 1 7 3 Detach 6 | . 1 . 1 . 4 . Swap 32 | . 9 2 10 . 10 1 Drop 48 | . 9 . 21 2 16 . Fire 205 | 9 47 10 44 18 71 6 Melee 22 | . . . . . 22 . Ram . | . . . . . . . Kick . | . . . . . . . Crush 30 | 2 10 2 11 4 . 1 Escape Stasis . | . . . . . . . Rewire . | . . . . . . . Trap . | . . . . . . . Miscellaneous . | . . . . . . . Route ------- -11/Scrapyard -10/Materials (discovered 5 exits: *Mat x3 / [*Min x2]) -10/Mines (discovered 3 exits: *Mat x2 / [*Sub]) -9/Materials (discovered 5 exits: *Mat x3 / *Min x2) -9/Mines (discovered 3 exits: *Mat x2 / *Exi) -9/Exiles (discovered 2 exits: [*Min x2]) -8/Mines History --------- Turn | Location | Event 34 | -11/Scrapyard | Discovered new exit (range 16) 125 | -11/Scrapyard | Entered Materials 312 | -10/Materials | Build established: Mutant 542 | -10/Materials | Discovered new exit (range 9) 825 | -10/Materials | Derelicts attacked the area 1038 | -10/Materials | Discovered new exit (range 14) 1303 | -10/Materials | Discovered new exit (range 16) 1478 | -10/Materials | Central database locked down 1543 | -10/Materials | Repaired Lgt. Treads 1570 | -10/Materials | Repaired Assault Rifle 1949 | -10/Materials | Discovered new exit (range 6) 2154 | -10/Materials | Discovered new exit (range 15) 2262 | -10/Materials | Entered Mines 2399 | -10/Mines | Found a hidden stash of uninstalled traps 2474 | -10/Mines | Learned Materials machine intel 2478 | -10/Mines | Discovered new exit (range 6) 2678 | -10/Mines | Learned Materials stockpile data 2692 | -10/Mines | Learned location of Zion (-7) 2710 | -10/Mines | YI-UF0 nonchalantly dropped a Grenade Launcher on the ground 2952 | -10/Mines | Core integrity fell below 50% 2954 | -10/Mines | Destroyed YI-UF0 2993 | -10/Mines | Discovered new exit (range 13) 3188 | -10/Mines | Discovered new exit (range 11) 3349 | -10/Mines | Entered Materials 3349 | -9/Materials | Evolved 2 slots: Weapon x2 3349 | -9/Materials | Discovered new exit (range 14) 3351 | -9/Materials | Loaded intel: 55 machine locations 3560 | -9/Materials | Met 8R-AWN 3645 | -9/Materials | Build established: Tank 3689 | -9/Materials | Discovered new exit (range 12) 4323 | -9/Materials | Identified exit to Mines 4427 | -9/Materials | Build established: Gunner 4485 | -9/Materials | Repaired Broken Lgt. Treads 4512 | -9/Materials | Repaired Lgt. Treads 4946 | -9/Materials | Discovered new exit (range 14) 5773 | -9/Materials | Discovered new exit (range 15) 6309 | -9/Materials | Entered Mines 6313 | -9/Mines | Followed 8R-AWN into the Mines 6376 | -9/Mines | Assisted by bots powering up and referring to "LRC-V3" 6482 | -9/Mines | Joined a pair of Derelicts in attacking an 0b10 outpost 6579 | -9/Mines | Assembled infested the area 7015 | -9/Mines | Discovered new exit (range 6) 7144 | -9/Mines | Identified exit to Materials 7209 | -9/Mines | A weapon hastily lodged in a ceiling crevice suddenly fell to the ground 7375 | -9/Mines | Build established: Tank 7411 | -9/Mines | Received a Rocket Launcher from a helpful Derelict 7937 | -9/Mines | Learned location of Storage (-7) 8085 | -9/Mines | Discovered new exit (range 5) 8094 | -9/Mines | Entered Exiles 8152 | -9/Exiles | Welcomed by 8R-AWN 8193 | -9/Exiles | Met EX-HEX 8277 | -9/Exiles | Met EX-BIN 8339 | -9/Exiles | Met EX-DEC 8451 | -9/Exiles | Visited The Gauntlet 8654 | -9/Exiles | Aligned with FarCom system 8656 | -9/Exiles | Given EX-Vault access code 8716 | -9/Exiles | Opened EX-Vault 8733 | -9/Exiles | Found Longsword +1 8787 | -9/Exiles | Warned to stay clear of 0b10 Research branches 9198 | -9/Exiles | Learned about 8R-AWN's background 9484 | -9/Exiles | Attacked by the Exiles 9620 | -9/Exiles | Destroyed 8R-AWN 9628 | -9/Exiles | Lost 4 parts (1n1u2w) 9641 | -9/Exiles | Found Prototype Ballistic Gun 9641 | -9/Exiles | Identified 8R-AWN's Boregun 9646 | -9/Exiles | Found Prototype Device 9646 | -9/Exiles | Identified AS-neutralizer No. 17b 9866 | -9/Exiles | Build established: Mutant 10290 | -9/Exiles | Destroyed EX-HEX 10298 | -9/Exiles | Destroyed EX-BIN 10302 | -9/Exiles | Destroyed EX-DEC 10325 | -9/Exiles | Found Prototype Processor 10331 | -9/Exiles | Found Deploy-a-Sentry 10992 | -9/Exiles | Build established: Tank 11657 | -9/Exiles | Discovered new exit (range 15) 11924 | -9/Exiles | DAS Turret deployed 11929 | -9/Exiles | DAS Turret deployed 11931 | -9/Exiles | DAS Turret deployed 12150 | -9/Exiles | DAS Turret deployed 12324 | -9/Exiles | Discovered new exit (range 14) 12350 | -9/Exiles | Entered Mines 12358 | -8/Mines | P1-3CE came to Exiles' defense 12363 | -8/Mines | Core integrity fell below 50% 12371 | -8/Mines | Core integrity fell below 20% 12374 | -8/Mines | Destroyed by P1-3CE with P1-3CE's Gatling Flakker Last Messages --------------- 12355_ T-07 Excavator destroyed. 12358_ P1-3CE: "I came as fast as I could... Wait, it was you!" 12359_ HV Slug penetrates Wall. 12361_ HV Slug penetrates P1-3CE. 12361_ P1-3CE suffers critical hit (Destroy). 12361_ HV Slug penetrates Wall. 12363_ HV Slug penetrates P1-3CE. 12363_ HV Slug penetrates Wall. 12365_ HV Slug penetrates P1-3CE. 12365_ P1-3CE suffers critical hit (Destroy). 12365_ Destroyed EM Shield. 12365_ HV Slug penetrates Wall. 12367_ Imp. Treads destroyed. 12367_ Flak Cannon destroyed. 12368_ HV Slug penetrates Wall. 12369_ Imp. Treads destroyed. 12371_ HV Slug penetrates P1-3CE. 12371_ HV Slug penetrates Wall. 12372_ Wall collapses. 12372_ Lgt. Armor Plating destroyed. Map ----- +----------------------------------------------------+ | ??????????????????????????????????????? | | ??????????????????????????????????????? | | ??????????????????????????????????????? | | ??????????????????????????????????????? | | ??????????????????????????????????????? | | ??????????????????????????????????????? | | ??????????????????????????????????????? | | ??????????????????????????????????????? | | ??????????????????????????????????????? | | ??????????????????????????????????????? | | ??????????????????????????????????????? | | ??????????????????????????????????????? | | ??????????????????????????????????????? | | ??????????????????????????????????????? | | ??????????????????????????????????????? | | ?????????????????????#????????????????? | | ?????????????????????#=???????????????? | | ?????????????????????; ???????????????? | | ?????????????????????#M#??????????????? | | ????????????????????## ##?????????? #? | | ????????????????????# ##??????? #? | | ????????????????????# ;#????# #?? | | ?????????????????????# #### #??? | | ?????????????????????# #???? | | ?????????????????????## #????? | | ??????????????????????#;;@;; #????? | | ??????????????????????# # ## ##????? | | ????????????????????????# ??? ##?????? | | ???????????????????????? ????#??????? | | ???????????????????????? ??????????? | | ???????????????????????? #??????????? | | ???????????????????????? ##??????????? | | ???????????????????????###????????????? | | ??????????????????????????????????????? | | ??????????????????????????????????????? | | | | | | | | | | | | | | | | | | | | | | | | | | | | | | | +----------------------------------------------------+ Best States ------------- Heat Dissipation 42 Energy Generation 17 Energy Capacity 280 Matter Stores 300 Matter Capacity 300 Sight Range 16 Terrain Scan Density 10 Armor Coverage 150 Evasion (%) 40 Recoil Reduction 2 Item Schematics ----------------- Huge Storage Unit | -9/Materials | Hacked Robot Schematics ------------------ None Fabricated ------------ Nothing Repaired ---------- Lgt. Treads | 4% | -10/Materials Assault Rifle | 37% | -10/Materials Lgt. Treads | 12% | -9/Materials | Broken Lgt. Treads | 17% | -9/Materials Alien Tech Used ----------------- None Achievements -------------- None Challenges ------------ None Game ------ Seed StorageSystemChip Manual? 0 Play Time 00:49:38 Cumulative 543.9 hours Start 2025.07.20 @ 16:19:16 End 2025.07.20 @ 19:47:37 Sessions 3 Manual Loads 0 Difficulty Rogue Special Mode None Game No. 239 Rogue 239 Adventurer 0 Explorer 0 Win Type - Total 25 Types 7/4/7/2/1/0/1/1/1/1 Lore% 91 Gallery% 87 Achievement% 81 Wizard Run 0 Options --------- Layout 0 ASCII 0 Keyboard 0 Movement Arrows Keybinds 0 Fullscreen 2 Font 18/SmallcapsGlow Map View 76x50 Zoom Use 0% Tactical HUD 1 Map Filters NONE Filters NONE Steam 1 RUN: bde84bc5-ea3f-4396-a75b-532792f17edd